fUSD/lending_fUSD_20250305
["ID","MTS","AMOUNT","RATE_DAILY","PERIOD"]
[355495353,1741204994818,-500.0,0.00010988,2]
[355495354,1741204994843,-514.44,0.00010988,2]
[355495355,1741204994870,-1376.38,0.00010988,2]
[355495356,1741204994894,-647.49,0.00010988,2]
[355495357,1741204994918,-864.75,0.00010988,2]
[355495358,1741204994942,-500.0,0.00010988,2]
[355495359,1741204994965,-1234.4,0.00010988,2]
[355495360,1741204994988,-500.0,0.00010988,2]
[355495361,1741204995011,-1055.17,0.00010988,2]
[355495362,1741204995034,-500.0,0.00010988,2]
[355495363,1741204995059,-275.97,0.00010988,2]
[355495368,1741205003158,-500.0,0.00010986,2]
[355495369,1741205003182,-500.0,0.00010986,2]
[355495370,1741205003205,-500.0,0.00010987,2]
[355495371,1741205003228,-500.0,0.00010987,2]
[355495372,1741205003250,-454.33,0.00010988,2]
[355495373,1741205003272,-50.0,0.00011,2]
[355495374,1741205160887,15000.0,0.000201,120]
[355495375,1741205192249,657.6,0.00010209,2]
[355495376,1741205320141,830.48,0.00010185,2]
[355495377,1741205380478,250.0,0.00010196,2]
[355495385,1741205422262,1000.0,0.00010224,2]
[355495394,1741205432259,-166.11,0.00010419,2]
[355495395,1741205432269,-500.0,0.00010795,2]
[355495396,1741205432278,-300.0,0.00010984,2]
[355495397,1741205432287,-3895.40111411,0.00010985,2]
[355495398,1741205432299,-8793.367682,0.00010985,2]
[355495399,1741205432364,-927.41341184,0.00010985,2]
[355495400,1741205432472,-2096.0,0.00010985,2]
[355495401,1741205432525,-557.09,0.00010985,2]
[355495402,1741205432537,-2464.0136625,0.00010985,2]
[355495403,1741205432549,-784.9093768,0.00010985,2]
[355495404,1741205432558,-543.45,0.00010986,2]
[355495405,1741205432567,-724.69,0.00010986,2]
[355495406,1741205432577,-2046.9506232,0.00010986,2]
[355495408,1741205432588,-1730.0,0.00010986,2]
[355495567,1741205438220,-3891.58641277,0.00010986,2]
[355495568,1741205438231,-8922.69296403,0.00010986,2]
[355495569,1741205438241,-500.0,0.00010986,2]
[355495570,1741205438251,-768.97,0.00010986,2]
[355495571,1741205438261,-500.0,0.00010986,2]
[355495572,1741205438271,-283.72543597,0.00010986,2]
[355495573,1741205438282,-1092.76717894,0.00010986,2]
[355495574,1741205438293,-1176.149,0.00010986,2]
[355495575,1741205438332,-509.81838509,0.00010986,2]
[355495576,1741205438342,-1298.36,0.00010986,2]
[355495577,1741205438351,-494.68161471,0.00010986,2]
[355495578,1741205438380,-216.99838529,0.00010986,2]
[355495579,1741205438390,-901.00157571,0.00010986,2]
[355495580,1741205438409,-76.44842429,0.00010986,2]
[355495581,1741205438421,-740.69,0.00010986,2]
[355495582,1741205438431,-568.43,0.00010986,2]
[355495583,1741205438440,-2289.91,0.00010986,2]
[355495584,1741205438450,-16980.96,0.00010986,2]
[355495585,1741205438459,-500.0,0.00010986,2]
[355495586,1741205438469,-626.95,0.00010986,2]
[355495587,1741205438478,-749.53,0.00010986,2]
[355495588,1741205438488,-765.83,0.00010986,2]
[355495590,1741205438497,-1988.28,0.00010986,2]
[355495592,1741205438506,-500.0,0.00010986,2]
[355495594,1741205438516,-606.13,0.00010986,2]
[355495596,1741205438525,-883.11,0.00010986,2]
[355495598,1741205438535,-1378.35,0.00010986,2]
[355495600,1741205438544,-1117.89,0.00010986,2]
[355495602,1741205438554,-3175.89,0.00010986,2]
[355495604,1741205438563,-598.34344785,0.00010986,2]
[355495791,1741205440475,-203.76655215,0.00010986,2]
[355495794,1741205440485,-1080.27,0.00010986,2]
[355495796,1741205440494,-500.0,0.00010986,2]
[355495798,1741205440504,-3670.9,0.00010986,2]
[355495800,1741205440513,-1428.15,0.00010986,2]
[355495802,1741205440524,-970.94,0.00010986,2]
[355495804,1741205440533,-574.5798029,0.00010986,2]
[355495806,1741205440544,-1682.7501971,0.00010986,2]
[355495808,1741205440554,-500.0,0.00010986,2]
[355495810,1741205440563,-773.72,0.00010986,2]
[355495812,1741205440572,-2754.03,0.00010986,2]
[355495814,1741205440582,-1068.5949029,0.00010986,2]
[355495816,1741205440593,-917.7050971,0.00010986,2]
[355495819,1741205440603,-500.0,0.00010986,2]
[355495821,1741205440613,-243.66238019,0.00010986,2]
[355495823,1741205440622,-1109.28,0.00010986,2]
[355495825,1741205440631,-599.55,0.00010986,2]
[355495827,1741205440641,-500.0,0.00010986,2]
[355495829,1741205440650,-801.3,0.00010986,2]
[355495831,1741205440660,-527.25,0.00010986,2]
[355495833,1741205440669,-500.0,0.00010986,2]
[355495835,1741205440679,-1609.54,0.00010986,2]
[355495837,1741205440688,-1428.6,0.00010986,2]
[355495839,1741205440697,-1605.97113098,0.00010986,2]
[355495843,1741205440731,-3774.79886902,0.00010986,2]
[355495845,1741205440742,-821.99,0.00010986,2]
[355495847,1741205440751,-1272.62,0.00010986,2]
[355495850,1741205440761,-1234.64,0.00010986,2]
[355495851,1741205440771,-1046.94,0.00010986,2]
[355495854,1741205440781,-1025.38,0.00010986,2]
[355495856,1741205440791,-591.13,0.00010986,2]
[355495858,1741205440800,-500.0,0.00010986,2]
[355495860,1741205440809,-925.21,0.00010986,2]
[355495862,1741205440818,-673.63,0.00010986,2]
[355495864,1741205440827,-1235.82,0.00010986,2]
[355495866,1741205440837,-1397.8411294,0.00010986,2]
[355495869,1741205440862,-280.08535008,0.00010986,2]
[355495872,1741205440873,-1279.74352052,0.00010986,2]
[355495874,1741205440883,-749.14842961,0.00010986,2]
[355495876,1741205440895,-2483.03334255,0.00010986,2]
[355495882,1741205440944,-339.07822784,0.00010986,2]
[355495884,1741205440955,-500.0,0.00010986,2]
[355495886,1741205440965,-500.0,0.00010986,2]
[355495888,1741205440974,-662.374718,0.00010986,2]
[355495890,1741205440984,-612.52,0.00010986,2]
[355495892,1741205440996,-1907.35,0.00010986,2]
[355495894,1741205441007,-5745.98,0.00010986,2]
[355495896,1741205441016,-1028.39,0.00010986,2]
[355495898,1741205441026,-6878.7,0.00010986,2]
[355495900,1741205441036,-841.650641,0.00010986,2]
[355495902,1741205441046,-1642.26,0.00010986,2]
[355495904,1741205441056,-932.81,0.00010986,2]
[355495906,1741205441065,-2575.51,0.00010986,2]
[355495908,1741205441075,-500.0,0.00010986,2]
[355495910,1741205441085,-1627.56,0.00010986,2]
[355495912,1741205441094,-782.79,0.00010986,2]
[355495914,1741205441104,-1111.85,0.00010986,2]
[355495916,1741205441113,-2858.59,0.00010986,2]
[355495918,1741205441123,-1092.05,0.00010986,2]
[355495920,1741205441132,-632.35,0.00010986,2]
[355495922,1741205441141,-1116.48,0.00010986,2]
[355495924,1741205441151,-500.97,0.00010986,2]
[355495926,1741205441161,-1088.52,0.00010986,2]
[355495928,1741205441171,-993.63,0.00010986,2]
[355495930,1741205441183,-778.35,0.00010986,2]
[355495932,1741205441195,-604.2,0.00010986,2]
[355495934,1741205441203,-938.73,0.00010986,2]
[355495936,1741205441212,-500.0,0.00010986,2]
[355495938,1741205441221,-1359.7,0.00010986,2]
[355495940,1741205441230,-1074.76,0.00010986,2]
[355495942,1741205441239,-976.36,0.00010986,2]
[355495944,1741205441248,-500.0,0.00010986,2]
[355495946,1741205441258,-1011.6,0.00010986,2]
[355495948,1741205441268,-561.9,0.00010986,2]
[355495949,1741205441280,-2039.27,0.00010986,2]
[355495952,1741205441290,-1026.8,0.00010986,2]
[355495954,1741205441300,-421.0,0.00010986,2]
[355495956,1741205441310,-1374.74,0.00010987,2]
[355495958,1741205441320,-500.0,0.00010987,2]
[355495960,1741205441329,-630.87,0.00010987,2]
[355495962,1741205441338,-663.46,0.00010987,2]
[355495964,1741205441348,-882.89,0.00010987,2]
[355495966,1741205441357,-500.0,0.00010987,2]
[355495968,1741205441366,-500.0,0.00010987,2]
[355495970,1741205441375,-500.0,0.00010987,2]
[355495972,1741205441385,-1264.68,0.00010987,2]
[355495974,1741205441394,-500.0,0.00010987,2]
[355495976,1741205441403,-500.0,0.00010987,2]
[355495978,1741205441413,-500.0,0.00010987,2]
[355495980,1741205441423,-500.0,0.00010987,2]
[355495982,1741205441433,-500.0,0.00010987,2]
[355495983,1741205441443,-1075.79,0.00010987,2]
[355495985,1741205441452,-500.0,0.00010987,2]
[355495987,1741205441462,-500.0,0.00010987,2]
[355495989,1741205441471,-747.25,0.00010987,2]
[355495991,1741205441481,-500.0,0.00010987,2]
[355495993,1741205441490,-500.0,0.00010987,2]
[355495995,1741205441500,-500.0,0.00010987,2]
[355495998,1741205441509,-500.0,0.00010987,2]
[355496000,1741205441518,-500.0,0.00010987,2]
[355496002,1741205441528,-500.0,0.00010987,2]
[355496004,1741205441537,-500.0,0.00010987,2]
[355496006,1741205441546,-500.0,0.00010987,2]
[355496008,1741205441555,-500.0,0.00010987,2]
[355496010,1741205441564,-500.0,0.00010987,2]
[355496012,1741205441574,-513.81629982,0.00010987,2]
[355496014,1741205441583,-500.0,0.00010987,2]
[355496016,1741205441592,-506.22050034,0.00010987,2]
[355496018,1741205441602,-500.0,0.00010987,2]
[355496020,1741205441611,-605.27,0.00010987,2]
[355496022,1741205441621,-500.0,0.00010987,2]
[355496024,1741205441630,-538.60817287,0.00010987,2]
[355496026,1741205441642,-500.0,0.00010987,2]
[355496028,1741205441652,-500.0,0.00010987,2]
[355496030,1741205441661,-500.0,0.00010987,2]
[355496032,1741205441671,-539.15,0.00010987,2]
[355496034,1741205441680,-500.0,0.00010987,2]
[355496036,1741205441690,-500.0,0.00010987,2]
[355496038,1741205441699,-500.0,0.00010987,2]
[355496039,1741205441708,-500.0,0.00010987,2]
[355496041,1741205441718,-500.0,0.00010987,2]
[355496043,1741205441727,-500.0,0.00010987,2]
[355496045,1741205441736,-500.0,0.00010987,2]
[355496047,1741205441746,-500.0,0.00010987,2]
[355496048,1741205441755,-784.27,0.00010987,2]
[355496051,1741205441766,-500.0,0.00010987,2]
[355496053,1741205441775,-500.0,0.00010987,2]
[355496055,1741205441784,-500.0,0.00010987,2]
[355496057,1741205441794,-500.0,0.00010987,2]
[355496059,1741205441803,-500.0,0.00010987,2]
[355496061,1741205441812,-500.0,0.00010987,2]
[355496063,1741205441821,-500.0,0.00010987,2]
[355496065,1741205441831,-500.0,0.00010987,2]
[355496067,1741205441841,-785.71,0.00010987,2]
[355496069,1741205441852,-500.0,0.00011,2]
[355496071,1741205441862,-159.0,0.00011,3]
[355496073,1741205441871,-152.0,0.00011,3]
[355496075,1741205441881,-444.46483507,0.00011018,2]
[355496077,1741205441890,-1387.35293494,0.0001102,2]
[355496079,1741205441900,-1387.35293494,0.00011032,2]
[355496107,1741205442127,-1064.77747047,0.00011036,2]
[355496111,1741205442190,-444.46483507,0.0001104,2]
[355496113,1741205442200,-153.51,0.00011051,2]
[355496115,1741205442209,-444.46483507,0.00011087,2]
[355496117,1741205442219,-1387.35293494,0.00011099,2]
[355496119,1741205442228,-3609.53550775,0.00011099,2]
[355496121,1741205442240,-625.03511279,0.000111,2]
[355496123,1741205442249,-625.03511259,0.000111,2]
[355496125,1741205442258,-625.03511259,0.000111,2]
[355496127,1741205442267,-625.03511259,0.00011107,2]
[355496129,1741205442277,-5000.0,0.0001116,2]
[355496131,1741205442287,-5909.67622688,0.0001116,2]
[355496133,1741205442296,-316.99209793,0.0001116,2]
[355496135,1741205442305,-625.03511259,0.00011176,2]
[355496137,1741205442315,-250.0,0.0001118,2]
[355496139,1741205442324,-1544.309,0.000112,2]
[355496141,1741205442333,-482.58514837,0.00011239,2]
[355496143,1741205442342,-990.4761973,0.0001124,2]
[355496145,1741205442352,-625.03511259,0.00011245,2]
[355496147,1741205442362,-150.0,0.00011251,2]
[355496150,1741205442372,-680.78,0.00011259,2]
[355496152,1741205442382,-500.0,0.00011259,2]
[355496154,1741205442391,-500.0,0.00011259,2]
[355496155,1741205442400,-583.99576429,0.00011259,2]
[355496158,1741205442410,-500.0,0.00011259,2]
[355496159,1741205442419,-578.4,0.00011259,2]
[355496162,1741205442429,-1098.23,0.00011259,2]
[355496163,1741205442438,-500.0,0.00011259,2]
[355496165,1741205442448,-500.0,0.00011259,2]
[355496168,1741205442457,-1010.02,0.00011259,2]
[355496169,1741205442466,-783.01,0.00011259,2]
[355496172,1741205442476,-514.07774589,0.00011259,2]
[355496174,1741205442485,-500.0,0.00011259,2]
[355496175,1741205442496,-1300.94,0.00011259,2]
[355496177,1741205442505,-1390.41,0.00011259,2]
[355496180,1741205442515,-500.0,0.00011259,2]
[355496181,1741205442524,-726.01,0.00011259,2]
[355496183,1741205442534,-656.4,0.00011259,2]
[355496185,1741205442543,-2088.91,0.00011259,2]
[355496187,1741205442553,-1307.18,0.00011259,2]
[355496190,1741205442562,-1004.53,0.00011259,2]
[355496191,1741205442572,-500.0,0.00011259,2]
[355496193,1741205442581,-709.04,0.00011259,2]
[355496195,1741205442590,-500.0,0.00011259,2]
[355496197,1741205442599,-7271.24,0.00011259,2]
[355496199,1741205442608,-266.04,0.00011259,2]
[355496201,1741205442618,-906.94,0.00011259,2]
[355496203,1741205442627,-676.71,0.00011259,2]
[355496205,1741205442637,-1813.03,0.00011259,2]
[355496207,1741205442646,-500.0,0.00011259,2]
[355496209,1741205442655,-606.69,0.00011259,2]
[355496212,1741205442666,-760.04,0.00011259,2]
[355496214,1741205442677,-500.0,0.00011259,2]
[355496216,1741205442687,-500.0,0.00011259,2]
[355496218,1741205442696,-722.18,0.00011259,2]
[355496220,1741205442706,-648.09,0.0001126,2]
[355496222,1741205442715,-896.73,0.0001126,2]
[355496224,1741205442724,-500.0,0.0001126,2]
[355496226,1741205442734,-992.83,0.0001126,2]
[355496228,1741205442743,-561.56,0.0001126,2]
[355496230,1741205442752,-626.43,0.0001126,2]
[355496232,1741205442762,-664.49,0.0001126,2]
[355496234,1741205442771,-500.0,0.0001126,2]
[355496236,1741205442781,-500.0,0.0001126,2]
[355496238,1741205442790,-534.06,0.0001126,2]
[355496240,1741205442799,-500.0,0.0001126,2]
[355496242,1741205442809,-500.0,0.0001126,2]
[355496244,1741205442818,-500.0,0.0001126,2]
[355496246,1741205442827,-661.64,0.0001126,2]
[355496248,1741205442837,-151.0,0.0001126,2]
[355496250,1741205442846,-151.0,0.0001126,2]
[355496252,1741205442855,-151.0,0.0001126,2]
[355496254,1741205442864,-151.0,0.0001126,2]
[355496256,1741205442875,-500.0,0.0001126,2]
[355496258,1741205442884,-151.0,0.0001126,2]
[355496260,1741205442893,-151.0,0.0001126,2]
[355496262,1741205442903,-151.0,0.0001126,2]
[355496264,1741205442917,-151.0,0.0001126,2]
[355496266,1741205442927,-151.0,0.0001126,2]
[355496268,1741205442937,-151.0,0.0001126,2]
[355496270,1741205442946,-151.0,0.0001126,2]
[355496273,1741205442957,-151.0,0.0001126,2]
[355496275,1741205442967,-500.0,0.0001126,2]
[355496277,1741205442976,-151.0,0.0001126,2]
[355496280,1741205442986,-151.0,0.0001126,2]
[355496283,1741205442997,-151.0,0.0001126,2]
[355496286,1741205443008,-151.0,0.0001126,2]
[355496289,1741205443017,-500.0,0.0001126,2]
[355496291,1741205443027,-151.0,0.0001126,2]
[355496293,1741205443046,-151.0,0.0001126,2]
[355496297,1741205443056,-151.0,0.0001126,2]
[355496300,1741205443066,-151.0,0.0001126,2]
[355496301,1741205443075,-151.0,0.0001126,2]
[355496304,1741205443086,-151.0,0.0001126,2]
[355496307,1741205443095,-151.0,0.0001126,2]
[355496308,1741205443105,-151.0,0.0001126,2]
[355496312,1741205443115,-151.0,0.0001126,2]
[355496314,1741205443125,-500.0,0.0001126,2]
[355496316,1741205443134,-151.0,0.0001126,2]
[355496317,1741205443144,-151.0,0.0001126,2]
[355496320,1741205443154,-151.0,0.0001126,2]
[355496321,1741205443163,-151.0,0.0001126,2]
[355496323,1741205443174,-151.0,0.0001126,2]
[355496326,1741205443182,-151.0,0.0001126,2]
[355496330,1741205443193,-151.0,0.0001126,2]
[355496332,1741205443202,-151.0,0.0001126,2]
[355496336,1741205443212,-151.0,0.0001126,2]
[355496338,1741205443221,-151.0,0.0001126,2]
[355496343,1741205443231,-500.0,0.0001126,2]
[355496345,1741205443241,-151.0,0.0001126,2]
[355496347,1741205443250,-151.0,0.0001126,2]
[355496349,1741205443259,-151.0,0.0001126,2]
[355496351,1741205443269,-151.0,0.0001126,2]
[355496355,1741205443278,-151.0,0.0001126,2]
[355496357,1741205443287,-151.0,0.0001126,2]
[355496361,1741205443297,-151.0,0.0001126,2]
[355496364,1741205443307,-151.0,0.0001126,2]
[355496366,1741205443317,-151.0,0.0001126,2]
[355496368,1741205443327,-151.0,0.0001126,2]
[355496370,1741205443336,-151.0,0.0001126,2]
[355496371,1741205443345,-151.0,0.0001126,2]
[355496374,1741205443355,-151.0,0.0001126,2]
[355496376,1741205443364,-500.0,0.0001126,2]
[355496377,1741205443374,-151.0,0.0001126,2]
[355496380,1741205443383,-211.81267376,0.0001126,2]
[355496382,1741205443393,-500.0,0.0001126,2]
[355496383,1741205443402,-500.0,0.0001126,2]
[355496386,1741205443413,-500.0,0.0001126,2]
[355496387,1741205443423,-500.0,0.0001126,2]
[355496390,1741205443433,-500.0,0.0001126,2]
[355496391,1741205443442,-500.0,0.0001126,2]
[355496393,1741205443451,-652.98,0.0001126,2]
[355496395,1741205443460,-500.0,0.0001126,2]
[355496398,1741205443470,-500.0,0.0001126,2]
[355496400,1741205443480,-528.17,0.0001126,2]
[355496402,1741205443489,-500.0,0.0001126,2]
[355496404,1741205443498,-500.0,0.0001126,2]
[355496406,1741205443507,-510.36655411,0.0001126,2]
[355496407,1741205443517,-500.0,0.0001126,2]
[355496410,1741205443526,-500.0,0.0001126,2]
[355496412,1741205443536,-500.0,0.0001126,2]
[355496414,1741205443546,-500.0,0.0001126,2]
[355496416,1741205443556,-500.0,0.0001126,2]
[355496418,1741205443565,-529.11,0.0001126,2]
[355496420,1741205443575,-500.0,0.0001126,2]
[355496422,1741205443585,-500.0,0.0001126,2]
[355496424,1741205443594,-500.0,0.0001126,2]
[355496426,1741205443604,-500.0,0.0001126,2]
[355496428,1741205443614,-500.0,0.0001126,2]
[355496430,1741205443623,-500.0,0.0001126,2]
[355496432,1741205443632,-500.0,0.0001126,2]
[355496434,1741205443642,-500.0,0.0001126,2]
[355496436,1741205443652,-500.0,0.0001126,2]
[355496438,1741205443661,-872.41,0.0001126,2]
[355496440,1741205443674,-608.59975371,0.0001126,2]
[355496442,1741205443683,-500.0,0.0001126,2]
[355496444,1741205443693,-633.63,0.0001126,2]
[355496446,1741205443703,-500.0,0.0001126,2]
[355496448,1741205443713,-609.29,0.0001126,2]
[355496450,1741205443722,-500.0,0.0001126,2]
[355496452,1741205443731,-192.21693528,0.0001126,2]
[355496453,1741205443740,-500.0,0.0001126,2]
[355496455,1741205443748,-500.0,0.0001126,2]
[355496457,1741205443758,-500.0,0.0001126,2]
[355496459,1741205443767,-500.0,0.0001126,2]
[355496461,1741205443776,-500.0,0.0001126,2]
[355496463,1741205443785,-500.0,0.0001126,2]
[355496465,1741205443795,-1042.3,0.0001126,2]
[355496467,1741205443804,-587.75103839,0.0001126,2]
[355496469,1741205443814,-531.990905,0.0001126,2]
[355496471,1741205443823,-500.0,0.0001126,2]
[355496473,1741205443833,-500.0,0.0001126,2]
[355496475,1741205443842,-500.0,0.0001126,2]
[355496477,1741205443851,-819.01,0.0001126,2]
[355496479,1741205443861,-500.0,0.0001126,2]
[355496481,1741205443870,-500.0,0.0001126,2]
[355496482,1741205443880,-1329.95,0.0001126,2]
[355496483,1741205443890,-500.0,0.0001126,2]
[355496484,1741205443899,-500.0,0.0001126,2]
[355496485,1741205443909,-500.0,0.0001126,2]
[355496486,1741205443925,-723.64,0.0001126,2]
[355496487,1741205443935,-500.0,0.0001126,2]
[355496488,1741205443945,-500.0,0.0001126,2]
[355496489,1741205443956,-1541.25,0.0001126,2]
[355496490,1741205443965,-500.0,0.0001126,2]
[355496491,1741205443975,-500.0,0.0001126,2]
[355496492,1741205443985,-500.0,0.0001126,2]
[355496494,1741205443996,-856.39,0.0001126,2]
[355496495,1741205444006,-500.0,0.0001126,2]
[355496497,1741205444017,-500.0,0.0001126,2]
[355496499,1741205444027,-500.0,0.0001126,2]
[355496501,1741205444036,-500.0,0.0001126,2]
[355496503,1741205444046,-558.21,0.0001126,2]
[355496506,1741205444056,-2962.85,0.0001126,2]
[355496507,1741205444066,-500.0,0.0001126,2]
[355496509,1741205444076,-500.0,0.0001126,2]
[355496511,1741205444085,-500.0,0.0001126,2]
[355496513,1741205444095,-500.0,0.0001126,2]
[355496516,1741205444104,-500.0,0.0001126,2]
[355496518,1741205444114,-674.44,0.0001126,2]
[355496520,1741205444123,-500.0,0.0001126,2]
[355496521,1741205444134,-2436.47,0.0001126,2]
[355496523,1741205444143,-500.0,0.0001126,2]
[355496525,1741205444153,-500.0,0.0001126,2]
[355496527,1741205444162,-500.0,0.0001126,2]
[355496529,1741205444172,-500.0,0.0001126,2]
[355496531,1741205444181,-500.0,0.0001126,2]
[355496534,1741205444191,-431.93,0.0001126,2]
[355496536,1741205444201,-543.45,0.0001126,2]
[355496538,1741205444210,-724.69,0.0001126,2]
[355496540,1741205444221,-500.0,0.0001126,2]
[355496542,1741205444231,-16591.23,0.0001126,2]
[355496544,1741205444240,-500.0,0.0001126,2]
[355496546,1741205444249,-500.0,0.0001126,2]
[355496548,1741205444258,-500.0,0.0001126,2]
[355496549,1741205444267,-814.85,0.0001126,2]
[355496551,1741205444276,-500.0,0.0001126,2]
[355496553,1741205444286,-500.0,0.0001126,2]
[355496556,1741205444295,-768.97,0.0001126,2]
[355496557,1741205444304,-500.0,0.0001126,2]
[355496560,1741205444314,-601.79,0.0001126,2]
[355496562,1741205444323,-500.0,0.0001126,2]
[355496563,1741205444332,-500.0,0.0001126,2]
[355496566,1741205444342,-3062.46,0.0001126,2]
[355496568,1741205444352,-500.0,0.0001126,2]
[355496570,1741205444361,-1298.36,0.0001126,2]
[355496571,1741205444371,-546.53,0.0001126,2]
[355496573,1741205444382,-711.68,0.0001126,2]
[355496576,1741205444392,-500.0,0.0001126,2]
[355496579,1741205444401,-500.0,0.0001126,2]
[355496583,1741205444412,-640.27,0.0001126,2]
[355496586,1741205444422,-500.0,0.0001126,2]
[355496590,1741205444431,-500.0,0.0001126,2]
[355496592,1741205444441,-587.13,0.0001126,2]
[355496595,1741205444450,-600.57,0.0001126,2]
[355496598,1741205444459,-977.45,0.0001126,2]
[355496600,1741205444468,-500.0,0.0001126,2]
[355496602,1741205444477,-500.0,0.0001126,2]
[355496605,1741205444487,-500.0,0.0001126,2]
[355496607,1741205444496,-500.0,0.0001126,2]
[355496608,1741205444505,-500.0,0.0001126,2]
[355496610,1741205444515,-740.69,0.0001126,2]
[355496612,1741205444524,-500.0,0.0001126,2]
[355496614,1741205444534,-500.0,0.0001126,2]
[355496617,1741205444543,-500.0,0.0001126,2]
[355496619,1741205444552,-568.43,0.0001126,2]
[355496621,1741205444562,-2289.91,0.0001126,2]
[355496622,1741205444571,-793.8,0.0001126,2]
[355496624,1741205444581,-500.0,0.0001126,2]
[355496627,1741205444590,-500.0,0.0001126,2]
[355496629,1741205444600,-16980.96,0.0001126,2]
[355496631,1741205444609,-567.31,0.0001126,2]
[355496632,1741205444619,-500.0,0.0001126,2]
[355496634,1741205444628,-500.0,0.0001126,2]
[355496636,1741205444637,-500.0,0.0001126,2]
[355496638,1741205444646,-626.95,0.0001126,2]
[355496641,1741205444656,-500.0,0.0001126,2]
[355496643,1741205444666,-749.53,0.0001126,2]
[355496645,1741205444677,-481.28231106,0.0001126,2]
[355496646,1741205444686,-500.0,0.0001126,2]
[355496649,1741205444696,-586.43,0.0001126,2]
[355496651,1741205444705,-500.0,0.0001126,2]
[355496652,1741205444716,-765.83,0.0001126,2]
[355496655,1741205444725,-1988.28,0.0001126,2]
[355496657,1741205444735,-500.0,0.0001126,2]
[355496659,1741205444744,-495.08410386,0.0001126,2]
[355496661,1741205444754,-500.0,0.0001126,2]
[355496663,1741205444763,-500.0,0.0001126,2]
[355496665,1741205444772,-500.0,0.0001126,2]
[355496667,1741205444782,-500.0,0.0001126,2]
[355496669,1741205444791,-500.0,0.0001126,2]
[355496671,1741205444800,-717.49,0.0001126,2]
[355496673,1741205444810,-606.13,0.0001126,2]
[355496675,1741205444819,-500.0,0.0001126,2]
[355496677,1741205444829,-624.62,0.0001126,2]
[355496679,1741205444838,-883.11,0.0001126,2]
[355496681,1741205444847,-500.0,0.0001126,2]
[355496683,1741205444857,-500.0,0.0001126,2]
[355496685,1741205444867,-500.0,0.0001126,2]
[355496687,1741205444876,-1378.35,0.0001126,2]
[355496689,1741205444886,-502.56311658,0.0001126,2]
[355496691,1741205444895,-1117.89,0.0001126,2]
[355496693,1741205444904,-725.28,0.0001126,2]
[355496695,1741205444916,-500.0,0.0001126,2]
[355496697,1741205444932,-3175.89,0.0001126,2]
[355496699,1741205444942,-500.0,0.0001126,2]
[355496701,1741205444952,-802.11,0.0001126,2]
[355496703,1741205444961,-500.0,0.0001126,2]
[355496705,1741205444970,-500.0,0.0001126,2]
[355496707,1741205444980,-607.89,0.0001126,2]
[355496709,1741205444990,-500.0,0.0001126,2]
[355496710,1741205444999,-500.0,0.0001126,2]
[355496712,1741205445010,-500.0,0.0001126,2]
[355496715,1741205445020,-500.0,0.0001126,2]